bitfinex/quotes_BTCUSD_20251009
["timestamp","ask_amount","ask_price","bid_price","bid_amount"]
[1760023306221,0.04000722,121330.0,121320.0,0.16485328]
[1760023306480,0.18261812,121330.0,121320.0,0.25756534]
[1760023306663,0.18261812,121330.0,121320.0,0.57852534]
[1760023306865,0.16486656,121340.0,121320.0,0.57852534]
[1760023307002,0.1826377,121340.0,121330.0,0.00369]
[1760023307208,0.1826377,121340.0,121330.0,0.00959]
[1760023307611,0.5226377,121340.0,121330.0,0.00959]
[1760023308748,0.5226377,121340.0,121330.0,0.33055]
[1760023310011,0.5226377,121340.0,121330.0,0.33051]
[1760023310214,0.5226377,121340.0,121330.0,0.00959]
[1760023310424,0.5226377,121340.0,121330.0,0.33051]
[1760023311232,0.5226377,121340.0,121330.0,0.00959]
[1760023311447,0.5226377,121340.0,121330.0,0.33051]
[1760023313504,0.5226377,121340.0,121330.0,0.00959]
[1760023313947,0.82623415,121340.0,121330.0,0.32678]
[1760023314172,0.02021743,121340.0,121330.0,0.0059]
[1760023314380,0.18504353,121340.0,121330.0,0.33047]
[1760023315504,0.16727239,121340.0,121330.0,0.33047]
[1760023316335,0.00244629,121340.0,121330.0,0.57843175]
[1760023316549,0.16727239,121340.0,121330.0,0.57843175]
[1760023316748,0.16727239,121340.0,121330.0,0.09271206]
[1760023316951,0.16727239,121340.0,121330.0,0.41359206]
[1760023317652,0.16727239,121340.0,121330.0,0.57843175]
[1760023318862,0.16727239,121340.0,121330.0,0.41359206]
[1760023319142,0.16727239,121340.0,121330.0,0.09271206]
[1760023319335,0.16727239,121340.0,121330.0,0.32783206]
[1760023319540,0.16727239,121340.0,121330.0,0.41355206]
[1760023319746,0.48606496,121340.0,121330.0,0.0059]
[1760023319948,0.48606496,121340.0,121330.0,0.32674]
[1760023320156,0.1848748,121340.0,121330.0,0.24102]
[1760023320367,0.1848748,121340.0,121330.0,0.32674]
[1760023320599,0.1848748,121340.0,121330.0,0.33043]
[1760023321236,0.1848748,121340.0,121330.0,0.11225134]
[1760023321453,0.16727239,121340.0,121330.0,0.00959]
[1760023321699,0.18487744,121340.0,121330.0,0.0059]
[1760023321906,0.18487744,121340.0,121330.0,0.25438]
[1760023322323,0.18487744,121340.0,121330.0,0.3267]
[1760023322711,0.18487744,121340.0,121330.0,0.32631008]
[1760023323158,0.18487744,121340.0,121330.0,0.00551008]
[1760023323367,1.16957776,121340.0,121330.0,0.00551008]
[1760023323601,1.29454966,121340.0,121330.0,0.08568]
[1760023323809,0.16488046,121300.0,121290.0,0.51649057]
[1760023324028,0.16488046,121300.0,121290.0,0.77747903]
[1760023324253,0.16488046,121300.0,121290.0,0.60764371]
[1760023324459,0.16488046,121300.0,121290.0,0.77253776]
[1760023324672,0.16488046,121300.0,121290.0,0.32780371]
[1760023324876,0.16488046,121300.0,121290.0,0.57837776]
[1760023326024,0.16486687,121310.0,121300.0,0.16488046]
[1760023326239,0.17449211,121320.0,121310.0,0.16486687]
[1760023326446,0.00137645,121320.0,121310.0,0.49164893]
[1760023326656,0.00137645,121320.0,121310.0,0.49168893]
[1760023327080,0.00137645,121320.0,121310.0,0.25656893]
[1760023327286,0.00137645,121320.0,121310.0,0.49164893]
[1760023328143,0.00137645,121320.0,121310.0,0.49264893]
[1760023329399,0.16622973,121320.0,121310.0,0.17738206]
[1760023329605,0.16622973,121320.0,121310.0,0.17938206]
[1760023329816,0.00137645,121320.0,121310.0,0.57932893]
[1760023330440,0.00137645,121320.0,121310.0,0.34324893]
[1760023330860,0.00137645,121320.0,121310.0,0.57832893]
[1760023331696,0.00137645,121320.0,121310.0,0.49264893]
[1760023331926,0.00137645,121320.0,121310.0,0.57832893]
[1760023332731,0.00137645,121320.0,121310.0,0.57754799]
[1760023335591,0.00137645,121320.0,121310.0,0.34246799]
[1760023336034,0.00137645,121320.0,121310.0,0.91754799]
[1760023336900,0.00137645,121320.0,121310.0,0.59678799]
[1760023337147,0.16622973,121320.0,121310.0,0.52044112]
[1760023337354,0.16622973,121320.0,121310.0,0.92038799]
[1760023337576,0.16622973,121320.0,121310.0,0.25678799]
[1760023337798,0.16622973,121320.0,121310.0,0.57750799]
[1760023338002,0.00137645,121320.0,121310.0,0.57750799]
[1760023339920,0.16622973,121320.0,121310.0,0.25678799]
[1760023340134,0.16622973,121320.0,121310.0,0.57750799]
[1760023340570,0.00137645,121320.0,121310.0,0.57750799]
[1760023340781,0.00137645,121320.0,121310.0,0.34246799]
[1760023341023,0.00137645,121320.0,121310.0,0.57750799]
[1760023342311,0.00137645,121320.0,121310.0,0.34246799]
[1760023342527,0.00137645,121320.0,121310.0,0.57750799]
[1760023342740,0.00137645,121320.0,121310.0,0.57613726]
[1760023343505,0.00137645,121320.0,121310.0,0.34109726]
[1760023343712,0.00137645,121320.0,121310.0,0.57613726]
[1760023345881,0.00137645,121320.0,121310.0,0.34109726]
[1760023346095,0.00137645,121320.0,121310.0,0.91613726]
[1760023346287,0.00137645,121320.0,121310.0,0.70583976]
[1760023346502,0.00137645,121320.0,121310.0,0.94087976]
[1760023347864,0.00137645,121320.0,121310.0,0.62015976]
[1760023348074,0.00137645,121320.0,121310.0,1.28367976]
[1760023348275,0.00137645,121320.0,121310.0,0.85515976]
[1760023348480,0.00137645,121320.0,121310.0,1.34509747]
[1760023350142,0.00137645,121320.0,121310.0,0.68157747]
[1760023350297,0.00137645,121320.0,121310.0,0.31683497]
[1760023350520,0.00137645,121320.0,121310.0,0.59821726]
[1760023350711,0.00137645,121320.0,121310.0,0.91889726]
[1760023352247,0.00137645,121320.0,121310.0,0.68389726]
[1760023352477,0.00137645,121320.0,121310.0,0.91889726]
[1760023353160,0.16622973,121320.0,121310.0,0.25541726]
[1760023353493,0.00137645,121320.0,121310.0,0.91889726]
[1760023355237,0.00137645,121320.0,121310.0,0.68389726]
[1760023355446,0.00137645,121320.0,121310.0,0.91889726]
[1760023356073,0.00137645,121320.0,121310.0,0.91885726]
[1760023361643,0.00137645,121320.0,121310.0,0.9794714]
[1760023362106,0.00137645,121320.0,121310.0,0.9795714]
[1760023363535,0.00137645,121320.0,121310.0,0.7446114]
[1760023363746,0.00137645,121320.0,121310.0,0.9795714]
[1760023364792,0.00137645,121320.0,121310.0,0.3161314]
[1760023365049,0.16622973,121320.0,121310.0,0.3161314]
[1760023365257,0.00137645,121320.0,121310.0,0.9795714]
[1760023367725,0.00137645,121320.0,121310.0,0.7446114]
[1760023367927,0.00137645,121320.0,121310.0,0.9795314]
[1760023370152,0.00137645,121320.0,121310.0,1.47468328]
[1760023370595,0.00137645,121320.0,121310.0,1.23976328]
[1760023370816,0.00137645,121320.0,121310.0,1.47468328]
[1760023371219,0.00137645,121320.0,121310.0,1.47368328]
[1760023371405,0.00137645,121320.0,121310.0,1.47568328]
[1760023371967,0.00137645,121320.0,121310.0,1.47768328]
[1760023372149,0.00137645,121320.0,121310.0,1.24276328]
[1760023372306,0.00137645,121320.0,121310.0,1.47768328]
[1760023372516,0.00137645,121320.0,121310.0,1.24276328]
[1760023372942,0.00137645,121320.0,121310.0,0.81428328]
[1760023373275,0.00137645,121320.0,121310.0,1.81848328]
[1760023373420,0.00137645,121320.0,121310.0,1.82048328]
[1760023374028,0.00137645,121320.0,121310.0,0.81428328]
[1760023374375,0.00137645,121320.0,121310.0,1.58556328]
[1760023374549,0.00137645,121320.0,121310.0,1.82048328]
[1760023374915,0.00137645,121320.0,121310.0,1.81848328]
[1760023375135,0.00137645,121320.0,121310.0,1.81648328]
[1760023375349,0.00137645,121320.0,121310.0,1.81948328]
[1760023375551,0.00137645,121320.0,121310.0,1.81944328]
[1760023377431,1e-08,121320.0,121310.0,2.11944328]
[1760023377650,1e-08,121320.0,121310.0,2.14417894]
[1760023378584,1e-08,121320.0,121310.0,1.90929894]
[1760023378783,1e-08,121320.0,121310.0,2.14409894]
[1760023380271,1e-08,121320.0,121310.0,1.71565894]
[1760023380520,1e-08,121320.0,121310.0,1.82353894]
[1760023380759,1e-08,121320.0,121310.0,1.81932328]
[1760023380995,1e-08,121320.0,121310.0,0.81328328]
[1760023381230,1e-08,121320.0,121310.0,1.0865714]
[1760023381452,1e-08,121320.0,121310.0,1.3214114]
[1760023381655,1e-08,121320.0,121310.0,1.42141139]
[1760023381873,1e-08,121320.0,121310.0,1.45156329]
[1760023382074,1e-08,121320.0,121310.0,1.42141139]
[1760023382290,1e-08,121320.0,121310.0,1.45056329]
[1760023382506,1e-08,121320.0,121310.0,1.45156329]
[1760023382924,1e-08,121320.0,121310.0,1.44956329]
[1760023383128,1e-08,121320.0,121310.0,1.45056329]
[1760023384181,1e-08,121320.0,121310.0,1.3505633]
[1760023384387,1e-08,121320.0,121310.0,1.45056329]
[1760023385575,1e-08,121320.0,121310.0,1.47556328]
[1760023385819,0.16482204,121360.0,121340.0,0.16481375]
[1760023386029,0.16482204,121360.0,121350.0,0.40364206]
[1760023386791,0.17306198,121360.0,121350.0,0.56845458]
[1760023387066,0.17314534,121360.0,121350.0,0.56845458]
[1760023387602,0.17314534,121360.0,121350.0,0.40364206]
[1760023387841,0.17312224,121360.0,121350.0,0.56845458]
[1760023391331,0.17312224,121360.0,121350.0,0.40364206]
[1760023391543,0.17312224,121360.0,121350.0,0.16880206]
[1760023391755,0.17312224,121360.0,121350.0,0.08312206]
[1760023391959,0.17518182,121360.0,121350.0,0.56841458]
[1760023392997,0.00214294,121360.0,121350.0,0.33361458]
[1760023393205,0.00214294,121360.0,121350.0,0.56841458]
[1760023393621,0.00214294,121360.0,121350.0,0.33361458]
[1760023393851,0.00214294,121360.0,121350.0,0.56841458]
[1760023394064,0.00214294,121360.0,121350.0,0.58535592]
[1760023394276,0.00214294,121360.0,121350.0,0.56841458]
[1760023395344,0.00214294,121360.0,121350.0,0.56941458]
[1760023396183,0.00214294,121360.0,121350.0,0.79304863]
[1760023396424,0.00214294,121360.0,121350.0,1.02784863]
[1760023396634,4e-05,121390.0,121380.0,0.16477179]
[1760023396851,0.00012342,121390.0,121380.0,0.33357385]
[1760023397061,0.00012342,121390.0,121380.0,0.67629385]
[1760023397266,0.00012342,121390.0,121380.0,0.91109385]
[1760023397483,0.00012342,121390.0,121380.0,0.67629385]
[1760023397729,0.00012342,121390.0,121380.0,0.91109385]
[1760023398121,0.00012342,121390.0,121380.0,0.24789385]
[1760023398325,0.00012342,121390.0,121380.0,0.91109385]
[1760023398677,0.00012342,121390.0,121380.0,0.91105385]
[1760023399011,0.00012342,121390.0,121380.0,0.24789385]
[1760023399235,0.00012342,121390.0,121380.0,0.91105385]
[1760023400431,0.00012342,121390.0,121380.0,0.67629385]
[1760023400648,0.00012342,121390.0,121380.0,0.56833385]
[1760023400789,0.16488163,121390.0,121380.0,0.40356206]
[1760023401240,0.16488163,121390.0,121380.0,0.56833385]
[1760023401575,0.00012342,121390.0,121380.0,0.56833385]
[1760023401952,0.00012342,121390.0,121380.0,0.33357385]
[1760023402162,0.00012342,121390.0,121380.0,0.56833385]
[1760023402367,0.00166746,121390.0,121380.0,0.24789385]
[1760023402545,0.16642567,121390.0,121380.0,0.24789385]
[1760023402741,0.16642567,121390.0,121380.0,0.31788206]
[1760023402984,0.16642567,121390.0,121380.0,0.33353385]
[1760023403150,0.16642567,121390.0,121380.0,0.56829385]
[1760023403348,0.16642567,121390.0,121380.0,0.24789385]
[1760023403568,0.16642567,121390.0,121380.0,0.56829385]
[1760023403785,0.16642567,121390.0,121380.0,0.56825385]
[1760023404180,0.16475821,121390.0,121380.0,0.56825385]
[1760023405458,0.18033996,121400.0,121380.0,0.56825385]
[1760023405593,0.18033996,121400.0,121390.0,0.16876206]
[1760023405800,0.18033996,121400.0,121390.0,0.40348206]
[1760023409141,0.18033996,121400.0,121390.0,0.08312206]
[1760023409363,0.18033996,121400.0,121390.0,0.56824027]
[1760023409364,0.0155947,121400.0,121390.0,0.56824027]
[1760023409565,0.17301661,121420.0,121390.0,0.34175818]
[1760023409700,0.16473107,121410.0,121400.0,0.16473184]
[1760023409906,0.16473107,121410.0,121400.0,0.2478539]
[1760023410114,0.18923172,121410.0,121400.0,0.4825739]
[1760023410839,0.18923172,121410.0,121400.0,0.2478539]
[1760023411011,0.18923172,121410.0,121400.0,0.4825339]
[1760023412068,0.18923172,121410.0,121400.0,0.2478539]
[1760023412281,0.18923172,121410.0,121400.0,0.4825339]
[1760023412633,0.19026079,121410.0,121400.0,0.4825467]
[1760023412863,0.19026079,121410.0,121400.0,0.31780206]
[1760023413664,0.19026079,121410.0,121400.0,0.08312206]
[1760023413935,0.19026079,121410.0,121400.0,0.40344206]
[1760023415245,0.19026079,121410.0,121400.0,0.16876206]
[1760023415426,0.19026079,121410.0,121400.0,0.5681867]
[1760023415826,0.19026079,121410.0,121400.0,0.40344206]
[1760023416047,0.19026079,121410.0,121400.0,0.16876206]
[1760023416252,0.19026079,121410.0,121400.0,0.40344206]
[1760023417443,0.16475821,121390.0,121370.0,0.51704009]
[1760023417662,0.16475356,121400.0,121380.0,0.56820689]
[1760023417852,0.16526814,121400.0,121390.0,0.16475821]
[1760023418046,0.16526814,121400.0,121390.0,0.24788027]
[1760023418252,0.16526814,121400.0,121390.0,0.08312206]
[1760023418469,0.16526814,121400.0,121390.0,0.24788027]
[1760023418772,0.17350537,121400.0,121390.0,0.24788027]
[1760023419600,0.17350537,121400.0,121390.0,0.08312206]
[1760023420492,0.17350537,121400.0,121390.0,0.31776206]
[1760023420701,0.17350537,121400.0,121370.0,0.00145889]
[1760023420903,0.16477179,121380.0,121370.0,0.08709889]
[1760023421100,0.82210919,121380.0,121370.0,0.00145889]
[1760023421387,0.82210919,121380.0,121370.0,0.00949889]
[1760023421753,0.82210919,121380.0,121370.0,0.09429889]
[1760023422172,0.69141901,121380.0,121370.0,0.00145889]
[1760023422355,0.69141901,121380.0,121370.0,0.09113889]
[1760023422356,1.04907058,121380.0,121370.0,0.09113889]
[1760023422558,1.15372624,121380.0,121370.0,0.09113889]
[1760023422770,0.16481252,121350.0,121340.0,0.06619503]
[1760023423009,0.19379252,121350.0,121340.0,0.06627839]
[1760023423222,0.23142252,121350.0,121340.0,0.27731839]
[1760023423426,0.23142252,121350.0,121340.0,0.15346305]
[1760023423606,0.23142252,121350.0,121340.0,0.32190802]
[1760023424018,0.64739183,121350.0,121340.0,0.00162802]
[1760023424233,0.30445461,121350.0,121340.0,0.32190802]
[1760023424442,0.64445461,121350.0,121340.0,0.08726802]
[1760023424642,0.64445461,121350.0,121340.0,0.32190802]
[1760023425055,1.20366234,121350.0,121340.0,0.00162802]
[1760023425256,1.3169363,121350.0,121340.0,0.08726802]
[1760023425463,1.32517692,121350.0,121310.0,0.0001]
[1760023425673,0.19414328,121320.0,121310.0,0.08589186]
[1760023425875,0.19414328,121320.0,121310.0,0.22037186]
[1760023426092,0.23228328,121320.0,121310.0,0.32057186]
[1760023426285,0.19414328,121320.0,121310.0,0.3221171]
[1760023426991,0.23228328,121320.0,121310.0,0.3221171]
[1760023427187,0.23228328,121320.0,121310.0,0.0874371]
[1760023427331,0.23228328,121320.0,121310.0,0.3221171]
[1760023428157,0.23328328,121320.0,121310.0,0.3221171]
[1760023429250,0.32912655,121320.0,121310.0,0.0874371]
[1760023429372,1.2018824,121320.0,121310.0,0.0874371]
[1760023429581,1.2018824,121320.0,121310.0,0.0017971]
[1760023430002,1.2018824,121320.0,121310.0,0.0866371]
[1760023430551,1.2018824,121320.0,121310.0,0.1617171]
[1760023431018,1.2018824,121320.0,121310.0,0.2237171]
[1760023431675,1.2018824,121320.0,121310.0,0.0017971]
[1760023431903,1.2018824,121320.0,121310.0,0.2365171]
[1760023432113,1.2018824,121320.0,121310.0,0.0017971]
[1760023432322,1.31515636,121320.0,121310.0,0.0017971]
[1760023432531,1.31515636,121320.0,121310.0,0.0916771]
[1760023432758,1.37545646,121320.0,121310.0,0.0916771]
[1760023433194,1.33742319,121320.0,121310.0,0.0017971]
[1760023434197,1.23281081,121320.0,121310.0,0.0017971]
[1760023434424,0.63109328,121320.0,121310.0,0.0017971]
[1760023434663,0.63109328,121320.0,121310.0,0.2365571]
[1760023435366,0.65584621,121320.0,121310.0,0.2365571]
[1760023436035,1.08398968,121320.0,121310.0,0.2365571]
[1760023436656,1.16398648,121320.0,121310.0,0.2365571]
[1760023436862,0.73584301,121320.0,121310.0,0.2365571]
[1760023437070,1.16398648,121320.0,121310.0,0.2365571]
[1760023437275,1.16398648,121320.0,121310.0,0.0017971]
[1760023437829,1.16398648,121320.0,121310.0,0.0100371]
[1760023438034,1.27726044,121320.0,121310.0,0.0100371]
[1760023438270,1.27726044,121320.0,121310.0,0.0017971]
[1760023439252,0.84911697,121320.0,121310.0,0.0017971]
[1760023439488,1.27726044,121320.0,121310.0,0.0017971]
[1760023440506,0.84911697,121320.0,121310.0,0.0017971]
[1760023440733,1.27726044,121320.0,121310.0,0.0017971]
[1760023441475,0.76912017,121320.0,121310.0,0.0017971]
[1760023441680,1.19726364,121320.0,121310.0,0.0017971]
[1760023442699,1.19726364,121320.0,121310.0,0.1985171]
[1760023442700,0.57328328,121320.0,121310.0,0.1985171]
[1760023442901,0.57328328,121320.0,121310.0,0.0017971]
[1760023443137,0.57328328,121320.0,121310.0,0.08779889]
[1760023443674,0.63109328,121320.0,121310.0,0.00139889]
[1760023443873,1.13923355,121320.0,121310.0,0.00139889]
[1760023444321,1.13923355,121320.0,121310.0,0.00931889]
[1760023444951,1.13923355,121320.0,121310.0,0.00139889]
[1760023445173,1.29201329,121320.0,121310.0,0.00139889]
[1760023445391,1.32160176,121320.0,121310.0,0.00139889]
[1760023446249,1.54962363,121320.0,121310.0,1e-08]
[1760023446422,1.56445698,121320.0,121310.0,1e-08]
[1760023446637,1.58921414,121320.0,121310.0,1e-08]
[1760023447617,1.58821414,121320.0,121310.0,1e-08]
[1760023447822,1.59221414,121320.0,121310.0,1e-08]
[1760023448211,1.59982877,121320.0,121310.0,1e-08]
[1760023448444,1.55540695,121320.0,121310.0,1e-08]
[1760023448618,1.32064695,121320.0,121310.0,1e-08]
[1760023448828,1.55544695,121320.0,121310.0,1e-08]
[1760023449036,1.42929013,121320.0,121310.0,1e-08]
[1760023449236,1.66409013,121320.0,121310.0,1e-08]
[1760023449450,0.93303752,121290.0,121280.0,0.15738503]
[1760023449668,1.10089637,121290.0,121280.0,0.06717143]
[1760023449872,1.10089637,121290.0,121280.0,0.35085143]
[1760023450100,1.10089637,121290.0,121280.0,0.35239724]
[1760023450539,1.10089637,121290.0,121280.0,0.08824221]
[1760023450744,1.06144752,121290.0,121280.0,0.08824221]
[1760023450954,0.57389405,121290.0,121280.0,0.32304221]
[1760023451293,0.58913967,121290.0,121280.0,0.32304221]
[1760023451499,0.64854967,121290.0,121280.0,0.32304221]
[1760023451679,0.71728557,121290.0,121280.0,0.32304221]
[1760023452362,0.69534858,121290.0,121280.0,0.32304221]
[1760023453052,0.62069296,121290.0,121280.0,0.32304221]
[1760023453392,0.66456694,121290.0,121280.0,0.32304221]
[1760023453601,1.24738608,121290.0,121280.0,0.08824221]
[1760023453805,1.24738608,121290.0,121280.0,0.00252221]
[1760023454009,1.24738608,121290.0,121280.0,0.08824221]
[1760023454220,1.21813676,121290.0,121280.0,0.32304221]
[1760023454436,1.13813996,121290.0,121280.0,0.00252221]
[1760023454653,1.09426598,121290.0,121280.0,0.00252221]
[1760023455077,1.27434011,121290.0,121280.0,0.00252221]
[1760023455308,1.27434011,121290.0,121260.0,0.0004]
[1760023455309,0.50492125,121270.0,121260.0,0.0004]
[1760023455513,1.09108857,121270.0,121260.0,0.00045041]
[1760023455719,1.53791253,121270.0,121260.0,0.00045041]
[1760023455932,1.53791253,121270.0,121250.0,0.0004]
[1760023455933,0.19508675,121260.0,121250.0,0.0004]
[1760023456142,0.81233225,121260.0,121250.0,0.0004]
[1760023456341,0.91108225,121260.0,121250.0,0.0004]
[1760023456544,1.22587905,121260.0,121250.0,0.0004]
[1760023456758,0.99107905,121260.0,121250.0,0.0004]
[1760023457393,1.25605212,121260.0,121250.0,0.0004]
[1760023457811,1.08404324,121260.0,121250.0,0.0004]
[1760023458016,1.31884324,121260.0,121250.0,0.0004]
[1760023458214,1.08504324,121260.0,121250.0,0.0004]
[1760023458628,1.31984324,121260.0,121250.0,0.0004]
[1760023459254,0.84788924,121260.0,121250.0,0.0004]
[1760023459466,1.65984324,121260.0,121250.0,0.0004]
[1760023459884,1.85318671,121260.0,121250.0,0.0004]
[1760023460091,2.08798671,121260.0,121250.0,0.0004]
[1760023460293,2.08798671,121260.0,121250.0,1e-08]
[1760023460494,2.05881364,121260.0,121250.0,1e-08]
[1760023460907,0.50494845,121250.0,121240.0,1e-08]
[1760023461118,0.53512756,121230.0,121220.0,0.0004]
[1760023461334,1.13294268,121230.0,121220.0,0.0004]
[1760023461539,1.21419956,121230.0,121220.0,0.0004]
[1760023461753,0.53515478,121210.0,121200.0,0.0004]
[1760023461970,1.2987238,121210.0,121200.0,0.0004]
[1760023462203,1.07898713,121210.0,121200.0,0.0004]
[1760023462391,1.2722906,121210.0,121200.0,0.0004]
[1760023462606,1.5071306,121210.0,121200.0,0.0004]
[1760023463207,1.5071306,121210.0,121200.0,0.00055209]
[1760023463618,1.5081306,121210.0,121200.0,0.00055209]
[1760023464102,1.2742906,121210.0,121200.0,0.00055209]
[1760023464328,0.19518201,121190.0,121180.0,0.0004]
[1760023464547,0.80309164,121190.0,121180.0,0.00052502]
[1760023464769,0.23403011,121190.0,121180.0,0.00052502]
[1760023464960,0.29344011,121190.0,121180.0,0.00052502]
[1760023465390,0.29337763,121190.0,121180.0,0.23540502]
[1760023465608,0.83579506,121190.0,121180.0,0.00052502]
[1760023465807,0.48864839,121190.0,121180.0,0.00052502]
[1760023466042,0.91679186,121190.0,121180.0,0.00052502]
[1760023466660,0.48864839,121190.0,121180.0,0.00052502]
[1760023466814,0.40865159,121190.0,121180.0,0.00052502]
[1760023467022,0.83679506,121190.0,121180.0,0.00568261]
[1760023467801,0.40865159,121190.0,121180.0,0.00568261]
[1760023468186,0.83679506,121190.0,121180.0,0.00568261]
[1760023468395,0.91679186,121190.0,121180.0,0.00568261]
[1760023470133,0.97779395,121190.0,121180.0,0.00568261]
[1760023471379,0.29696972,121190.0,121180.0,0.00568261]
[1760023471591,0.29696972,121190.0,121180.0,0.22104261]
[1760023471797,0.29696972,121190.0,121180.0,0.00568261]
[1760023472023,0.29696972,121190.0,121180.0,0.24060261]
[1760023472234,0.35637972,121190.0,121180.0,0.24060261]
[1760023472674,0.95555171,121190.0,121180.0,0.24060261]
[1760023472889,0.95555171,121190.0,121180.0,0.00568261]
[1760023473109,0.52740824,121190.0,121180.0,0.00568261]
[1760023473323,0.95555171,121190.0,121180.0,0.00568261]
[1760023473796,0.52740824,121190.0,121180.0,0.00568261]
[1760023474002,0.41413428,121190.0,121180.0,0.00568261]
[1760023474212,0.35472428,121190.0,121180.0,0.00568261]
[1760023474439,0.29696972,121190.0,121180.0,0.24060261]
[1760023474878,0.23596763,121190.0,121180.0,0.00568261]
[1760023475091,0.50696763,121190.0,121180.0,0.24060261]
[1760023475925,0.54630763,121190.0,121180.0,0.24060261]
[1760023476140,0.50696763,121190.0,121180.0,0.24060261]
[1760023476349,0.54630763,121190.0,121180.0,0.24060261]
[1760023477197,0.54630763,121190.0,121180.0,0.00568261]
[1760023477652,1.10442929,121190.0,121180.0,0.00568261]
[1760023477867,1.21770325,121190.0,121180.0,0.00568261]
[1760023478525,0.59322807,121150.0,121140.0,0.0001]
[1760023478736,0.1947446,121150.0,121140.0,0.16172685]
[1760023478943,0.2340846,121150.0,121140.0,0.08640685]
[1760023479145,0.24860186,121150.0,121140.0,0.30156685]
[1760023479357,0.17960186,121150.0,121140.0,0.30156685]
[1760023479788,0.17960186,121150.0,121140.0,0.08740685]
[1760023480011,0.01451726,121150.0,121140.0,0.5828416]
[1760023480213,0.17960186,121150.0,121140.0,0.57058714]
[1760023480427,0.1650846,121150.0,121140.0,0.08472891]
[1760023480644,0.2928646,121150.0,121140.0,0.08740685]
[1760023480863,0.2928646,121150.0,121140.0,0.32236685]
[1760023481070,0.24553448,121150.0,121140.0,0.00160685]
[1760023481313,0.3961423,121150.0,121140.0,0.24440685]
[1760023481523,0.35233177,121150.0,121140.0,0.08640685]
[1760023481733,0.29211177,121150.0,121140.0,0.32136685]
[1760023481954,0.29211177,121150.0,121140.0,0.32036685]
[1760023482394,0.31389721,121150.0,121140.0,0.00060685]
[1760023482615,0.70702485,121150.0,121140.0,0.24956685]
[1760023482824,0.06127037,121150.0,121140.0,0.25150508]
[1760023483040,0.21901101,121150.0,121140.0,0.32136685]
[1760023483478,0.25835101,121150.0,121140.0,0.32136685]
[1760023483713,0.36969307,121150.0,121120.0,0.01403799]
[1760023483949,0.36969307,121150.0,121120.0,0.01419005]
[1760023483950,0.59325533,121130.0,121120.0,0.01419005]
[1760023484161,0.77295989,121130.0,121120.0,0.01419005]
[1760023484368,0.78317072,121130.0,121120.0,0.01419005]
[1760023484585,0.84339072,121130.0,121120.0,0.01728742]
[1760023484819,0.49524405,121130.0,121120.0,0.01728742]
[1760023485501,0.31033998,121130.0,121120.0,0.25336742]
[1760023485721,0.67826345,121130.0,121120.0,0.25336742]
[1760023486160,0.73531345,121130.0,121120.0,0.01728742]
[1760023486367,0.73531345,121130.0,121120.0,0.25336742]
[1760023486571,0.73531345,121130.0,121120.0,0.01728742]
[1760023486721,0.89843231,121130.0,121120.0,0.01728742]
[1760023486919,0.89843231,121130.0,121120.0,0.24652742]
[1760023487352,0.89843231,121130.0,121120.0,0.01728742]
[1760023487531,0.89843231,121130.0,121120.0,0.25332742]
[1760023487737,0.92021752,121130.0,121120.0,0.01728742]
[1760023487940,0.89843231,121130.0,121120.0,0.01728742]
[1760023489455,0.92858421,121130.0,121120.0,0.01728742]
[1760023490272,0.92858421,121130.0,121090.0,0.0004]
[1760023490273,0.16515276,121100.0,121090.0,0.0004]
[1760023490616,0.34,121100.0,121090.0,0.00055221]
[1760023490818,0.50515276,121100.0,121090.0,0.13719221]
[1760023491054,0.53123387,121130.0,121090.0,0.13719221]
[1760023491055,0.02178521,121130.0,121090.0,0.38548067]
[1760023491253,0.16510315,121140.0,121120.0,0.16512398]
[1760023491468,0.19300315,121140.0,121130.0,0.32264]
[1760023491702,0.17339246,121130.0,121100.0,0.42652206]
[1760023491921,0.17339246,121130.0,121110.0,0.25097912]
[1760023491922,0.34,121130.0,121110.0,0.25097912]
[1760023492137,0.06437829,121150.0,121130.0,0.16511186]
[1760023492352,0.03207782,121150.0,121140.0,0.48793823]
[1760023492563,0.19716242,121150.0,121140.0,0.48793823]
[1760023493024,0.53716242,121150.0,121140.0,0.48793823]
[1760023493236,0.19716242,121150.0,121140.0,0.48793823]
[1760023493449,0.53716242,121150.0,121140.0,0.48793823]
[1760023493884,0.44909736,121150.0,121140.0,0.48797823]
[1760023494097,0.03307782,121150.0,121140.0,0.48797823]
[1760023494742,0.03307782,121150.0,121140.0,0.57106029]
[1760023494743,0.01669308,121150.0,121140.0,0.57106029]
[1760023494952,0.002,121150.0,121140.0,0.33406029]
[1760023495159,0.002,121150.0,121140.0,0.579884]
[1760023495392,0.001,121150.0,121140.0,0.579884]
[1760023495599,0.05091438,121180.0,121170.0,0.16505735]
[1760023495600,0.1950812,121180.0,121170.0,0.16505735]
[1760023495806,0.37969462,121180.0,121170.0,0.48797735]
[1760023496031,0.03969462,121180.0,121170.0,0.25089735]
[1760023496257,0.03969462,121180.0,121170.0,0.33401941]
[1760023496465,0.04313783,121180.0,121170.0,0.57113941]
[1760023496724,0.02135262,121180.0,121170.0,0.57113941]
[1760023497361,0.04313783,121180.0,121170.0,0.57113941]
[1760023497568,0.04313783,121180.0,121170.0,0.33401941]
[1760023497774,0.04313783,121180.0,121170.0,0.57113941]
[1760023497995,0.02135262,121180.0,121170.0,0.57113941]
[1760023499008,0.02135262,121180.0,121170.0,0.57213941]
[1760023500376,0.02135262,121180.0,121170.0,0.24917941]
[1760023500777,0.02135262,121180.0,121170.0,0.33497941]
[1760023500982,0.02135262,121180.0,121170.0,0.24917941]
[1760023501181,0.02135262,121180.0,121170.0,0.57189941]
[1760023501408,0.04313783,121180.0,121170.0,0.57189941]
[1760023501604,0.04313783,121180.0,121170.0,0.48605941]
[1760023501866,0.04313783,121180.0,121170.0,0.57185941]
[1760023502279,0.20818156,121180.0,121170.0,0.24917941]
[1760023502482,0.23731073,121180.0,121170.0,0.16992206]
[1760023502710,0.21552552,121180.0,121170.0,0.0868]
[1760023502912,0.32485605,121180.0,121170.0,0.32372]
[1760023503091,0.29572688,121180.0,121170.0,0.001]
[1760023503342,0.29572688,121180.0,121170.0,0.32368]
[1760023503571,0.31248418,121180.0,121170.0,0.001]
[1760023503864,0.36953418,121180.0,121170.0,0.001]
[1760023504099,0.1650846,121150.0,121140.0,0.23954817]
[1760023504340,0.18248841,121150.0,121140.0,0.64539023]
[1760023504548,0.18248841,121150.0,121140.0,0.32267023]
[1760023504755,0.18248841,121150.0,121140.0,0.40584206]
[1760023504962,0.2045808,121150.0,121140.0,0.40588206]
[1760023505414,0.2045808,121150.0,121140.0,0.08312206]
[1760023505664,0.2045808,121150.0,121140.0,0.40588206]
[1760023505876,0.2045808,121150.0,121140.0,0.57098029]
[1760023506128,0.20489012,121150.0,121140.0,0.40688206]
[1760023506344,0.20489012,121150.0,121140.0,0.32372]
[1760023506345,0.27775246,121150.0,121140.0,0.32372]
[1760023506613,0.34778411,121150.0,121140.0,0.32372]
[1760023507039,0.34778411,121150.0,121140.0,0.32368]
[1760023507240,0.34778411,121150.0,121140.0,0.32268]